Workbook

Sheet Menu

Sheet Description
B1: Replacement Heifer and First-Calf Pair Production Description
B3: Ranch: | C3: Example of bred and 3 in one pair cost | G3: Date Printed:
G4: =NOW() -> 2013-03-01T08:09:59.590
B6: Weaned Replacement Heifers - Raised or Purchased
B7: Date - Weaned or Production Started | G7: 2012-10-15
B8: Number of Head | G8: 100
B9: Beginning Weight | E9: Lbs/Head | G9: 560
B10: Heifer Cost or Sales Value | E10: $/Cwt | G10: 132
B11: Other Costs if Sold - Commissions | E11: % | G11: 4
B12: Purchase Costs - Per Head Charges | E12: $/Head | G12: 1
B13: Death Loss Starting to Breeding Season- % & Hd. | E13: 0.5 | F13: % | G13: =E13*0.01*G8 -> 0.5
B14: Heifers Culled Before Breeding
B15: Average Date Culled | G15: 2013-03-15
B16: Number of Head | E16: Head | G16: 5 | J16: Bred Heifer Head Days
B17: Weight | E17: Lbs/Head | G17: 650 | J17: Head Days | K17: Head | L17: Total Days
B18: Net Value | E18: $/Cwt | G18: 128
B19: Total Value | E19: $ | G19: =G18*G17*G16*0.01 -> 4160 | J19: =G15-G7 -> 151 | K19: =G8 -> 100 | L19: =J19*K19 -> 15100 | M19: Weaning To Breeding | P19: Total Gain | Q19: =(G17-G9)*G16 -> 450 | R19: Cull Sales
B20: Beginning Breeding Season Date | G20: 2013-04-27 | J20: =G20-G15 -> 43 | K20: =G16 -> 5 | L20: =J20*K20 -> 215 | M20: Culling Adjustment
J21: =J19-J20 -> 108 | K21: =K19-K20 -> 95 | L21: =L19-L20 -> 14885 | M21: Net Days to Breeding
B22: Heifers Exposed | E22: Head | G22: =(G8-(G13*0.01*G8)-G16) -> 94.5 | J22: =G35-G20 -> 188 | K22: =G22 -> 94.5 | L22: =J22*K22 -> 17766 | M22: Breeding to Bred Heifer Sale
B23: Pregnancy Testing Date | G23: 2013-08-01 | J23: =G28-G23 -> 75 | K23: =G29 -> 9.45 | L23: =J23*K23 -> 708.75 | M23: Culling Adjustment
B24: Percent Pregnant | E24: % | G24: 90 | J24: =J22-J23 -> 113 | K24: =K22-K23 -> 85.05 | L24: =L22-L23 -> 17057.25 | M24: Net to Bred Heifer Sales
B26: Pregnant Heifers | E26: Head | G26: =G22*G24*0.01 -> 85.05 | J26: Total Days | L26: =L21+L24 -> 31942.25
B27: Heifers Culled After Pregnancy Testing | J27: Average per Head In | L27: =L26/G8 -> 319.4225 | M27: Bred Heifers
B28: Average Date Culled | G28: 2013-10-15
B29: Number of Head | E29: Head | G29: =G22-G26 -> 9.45 | J29: Replacement Heifer Pair Sale Head Days | P29: Total Gain | Q29: =(G30-G9)*G29 -> 2740.5 | R29: Cull Sales
B30: Weight | E30: Lbs/Head | G30: 850
B31: Net Value | E31: $/Cwt | G31: 122 | J31: =G48-G23 -> 304 | K31: =G34 -> 85.05 | L31: =J31*K31 -> 25855.2 | M31: Pregnant Test to Pair Sale
B32: Total Value | E32: $ | G32: =G31*G30*G29*0.01 -> 9799.65 | J32: =G40-G23 -> 208 | K32: =G39 -> 8.505 | L32: =J32*K32 -> 1769.04 | M32: Culled
L33: =L31-L32 -> 24086.16 | M33: Net to Pair Sale
B34: Potential Sales of Bred Replacement Heifers | G34: =G26 -> 85.05
B35: Sales Date for Bred Replacement Heifers | G35: 2013-11-01 | J35: Total Days | L35: =L26+L33 -> 56028.41
J36: Average per Head In | L36: =L35/G8 -> 560.2841 | M36: Sales of Pairs
B37: Calving Replacement Heifers
B38: Heifers Losing Pregnancy or Calf Loss Based
B39: on Bred Replacements - % & Head | E39: 10 | F39: % | G39: =E39*G34*0.01 -> 8.505
B40: Average Date Culled | G40: 2014-02-25 | P40: Total Gain | Q40: =(G41-G9)*G39 -> 3742.2 | R40: Cull Sales
B41: Weight | E41: Lbs/Head | G41: 1000
B42: Net Value | E42: $/Cwt | G42: 118
B43: Total Value | E43: $ | G43: =G42*G41*G39*0.01 -> 10035.9 | P43: Total Gain | Q43: =('Bred Heifer Budget'!E25-Description!G9)*Description!G34 -> 40611.375 | R43: Final Bred Heifer Sales
Q44: =Q29+Q30+Q43 -> 43351.875 | R44: Total Net Payweight Gain Pairs
B45: Death Loss of Bred Repl. Heifers - % & Hd. | E45: 1 | F45: % | G45: =E45*0.01*G34 -> 0.8505
P46: Total Gain | Q46: =(PairBudget!E25-Description!G9)*Description!G47 -> 38318.87291 | R46: Final Sales Pairs
B47: Pairs Available for Sale | G47: =(1-G45*0.01)*(G34-G39) -> 75.89398478
B48: Sales Date for Pairs | G48: 2014-06-01 | Q48: =Q29+Q40+Q46 -> 44801.57291 | R48: Total Net Payweight Gain Pairs
B50: Performance Measures | F50: Started | G50: Exposed
B51: Head of Heifers | F51: =G8 -> 100 | G51: =G22 -> 94.5
B52: Pregnancy Percent Based on Exposed Heifers | F52: =G26/G8 -> 0.8505 | G52: =G26/G22 -> 0.9
B53: Calving Percent | F53: =G47/G8 -> 0.7589398478 | G53: =G47/G22 -> 0.80311095
B54: Calving Percent Based on Bred Heifers | E54: =G47/G34 -> 0.8923455
B56: Death Loss of Replacements Through Pairs | E56: Head | F56: =G45+G13 -> 1.3505 | G56: =(F56/G8) -> 0.013505
B57: Culls Marketed - Starting Through Pairs | G57: =G16+G29+G39 -> 22.955
B58: -

Sheet Bred Heifer Budget
A1: Bred Replacement Heifer Production Budget | Q1: This Section IS Not to Be Changed - a Zero Purchase Price Is for Analysis
A4: Decision Description | B4: Raised Replacement Heifer Sold Bred | Q4: Decision Description | R4: Custom Fed Heifers
R5: Date of Analysis | U5: =TODAY() -> 2013-03-01
A6: Weaned Heifer Calf | D6: Heifer Raised | Q6: Purchase Heifer Calf to Grow
A7: At Best Sell or Buy Option - Describe | D7: Direct Sale Comparison | Q7: At Best Buy Option - Describe
A8: Date Started | E8: =Description!G7 -> 2012-10-15 | Q8: Date Purchased | U8: ='Bred Heifer Budget'!E8 -> 2012-10-15
A9: No. of Cattle Retained or Purchased | B9: Head | E9: =Description!G8 -> 100 | Q9: No. of Cattle Purchased | R9: Head | U9: ='Bred Heifer Budget'!E9 -> 100
A10: Beginning Weight | B10: Lbs/Head | E10: =Description!G9 -> 560 | Q10: Beginning Weight | U10: ='Bred Heifer Budget'!E10 -> 560
A11: Heifer Cost or Sales Value | B11: $/Cwt | E11: =Description!G10 -> 132
A12: Heifer Cost | B12: $/Head | E12: =E10*E11*0.01 -> 739.2 | Q12: Gross Heifer Cost | R12: $/Head | U12: 0
A13: Other Costs if Sold - Commissions | B13: % - $/Head | D13: =Description!G11 -> 4 | E13: =((E12*0.01)*D13) -> 29.568 | Q13: Other Purchase or Costs - Commissions | R13: % - $/Head | T13: ='Bred Heifer Budget'!D13 -> 4 | U13: ='Bred Heifer Budget'!E13 -> 29.568
A14: Purchase Costs - Per Head Charges | B14: $/Head | E14: =Description!G12 -> 1 | Q14: Purchase Costs - Per Head Charges | R14: $/Head | U14: 0
A16: Net Purchase Cost Per Head | B16: $/Head | E16: =(E12-E13+E14) -> 710.632 | Q16: Net Purchase Cost Per Head | R16: $/Head | U16: 0
A18: Total Cost | B18: $ | E18: =(E16*E9) -> 71063.2 | Q18: Total Cost | R18: $ | U18: 0
A19: - | Q19: -
A20: Description of Alternative | D20: Direct Sale | Q20: Description of Alternative | T20: Direct Sale
A22: Date Bred Heifers Marketed | E22: =Description!G35 -> 2013-11-01 | Q22: Date Marketed | U22: =U8+U23 -> 2013-11-01 | V22: Months
A23: Days Held - Adjusted for Culling | E23: =E22-E8 -> 382 | Q23: Days Held | U23: =E23 -> 382 | V23: =U23/30.47 -> 12.53692156
A24: Average Daily Gain | B24: Lbs/Day | E24: 1.25 | Q24: Average Daily Gain | R24: Lb./Day | U24: =E24 -> 1.25
A25: Weight at Sales | B25: Lbs/Head | E25: =(E23*E24+E10) -> 1037.5 | Q25: Weight at Sales | R25: Lb./Head | U25: =(U23*U24+U10) -> 1037.5
A26: Net Gain | B26: Lbs/Head | E26: =(E25-E10) -> 477.5 | Q26: Net Gain | R26: Lb./Head | U26: =(U25-U10) -> 477.5
A27: Culled Heifers | B27: Head | E27: =Description!G16+Description!G29 -> 14.45 | Q27: Culled Heifers | R27: Head
A28: Value of Culls | B28: $ | E28: =Description!G19+Description!G32 -> 13959.65 | Q28: Value of Culls | R28: $
A29: Death Loss | B29: Head | E29: =Description!G13 -> 0.5 | Q29: Death Loss | R29: Head
A30: Gross Sales Income | B30: $/Head | E30: 1350 | Q30: Gross Sales Income | R30: $/Head | U30: =E30 -> 1350
A31: Marketing Costs - Commissions | B31: % - $/Head | D31: 0 | E31: =((E30*D31*0.01)) -> 0 | Q31: Marketing Costs - Commissions | R31: % - $/Head | T31: =D31 -> 0 | U31: =((U30*T31*0.01)) -> 0
A32: Marketing Costs Total Charges | B32: $/Head | E32: 1 | Q32: Marketing Costs Total Charges | R32: $/Head | U32: =E32 -> 1
A33: Number Marketed (Net of Death Loss) | B33: Head | E33: =Description!G34 -> 85.05 | Q33: Number Marketed (Net of Death Loss) | R33: Head | U33: =E33 -> 85.05
A34: Net Sales Revenue Per Head | B34: $/Head | E34: =((E30-E32-E31)) -> 1349 | Q34: Net Sales Revenue Per Head | R34: $/Head | U34: =((U30-U32-U31)) -> 1349
A36: Total Sales Value (Based on Head Marketed) | B36: $ | E36: =(E34*E33)+E28 -> 128692.1 | Q36: Total Sales Value (Based on Head Marketed) | R36: $ | U36: =(U34*U33) -> 114732.45
E38: Financial | F38: Financial | G38: Economic* | U38: Financial | V38: Financial | W38: Economic*
A39: Total Difference in Gross Revenue (Marginal Revenue) | E39: Total | F39: $/Head | G39: Total | Q39: Total Difference in Gross Revenue (Marginal Revenue) | U39: Total | V39: $/Head | W39: Total
A40: Total Projected Expenses | F40: Rate of Interest | K40: Annualized | Q40: Total Projected Expenses | V40: Rate of Interest | AA40: Annualized
A41: Borrowed or Opportunity Cost of Equity Capital | B41: % Borrowed | D41: 0 | E41: % Rate | F41: 5 | G41: % | K41: Interest Rate | Q41: Borrowed or Opportunity Cost of Equity Capital | R41: % Borrowed | T41: =D41 -> 0 | U41: % Rate | V41: =F41 -> 5 | W41: % | AA41: Interest Rate
A42: Opportunity Cost of Equity Capital If Invested | B42: $ | E42: Total | F42: $/Hd Out | G42: =K51 -> 3829.606126 | K42: =($F$41*($C$46/365)) -> 4.375650685 | L42: % | Q42: Opportunity Cost of Equity Capital If Invested | R42: $ | U42: Total | V42: $/Head | W42: =AA51 -> 829.5199951 | AA42: =($F$41*($S$46/365)) -> 4.375650685 | AB42: %
A43: Cash Interest Cost | B43: $/Hd | D43: =(E43/E9) -> 0 | E43: =(D41*G42*0.01) -> 0 | F43: =E43/$E$33 -> 0 | K43: Economic Interest Cost | Q43: Cash Interest Cost | R43: $/Hd. | T43: =(U43/U9) -> 0 | U43: =(T41*W42*0.01) -> 0 | V43: =U43/$E$33 -> 0 | AA43: Economic Interest Cost
A44: Total Purchase Cost of Cattle | B44: $ | E44: =E18 -> 71063.2 | F44: =E44/$E$33 -> 835.5461493 | G44: =E44 -> 71063.2 | K44: =((SUM($E$45:$E$52)*0.5*(($C$46/365)*$F$41*0.01))) -> 720.128728 | L44: Feed | Q44: Total Purchase Cost of Cattle | R44: $ | U44: 0 | V44: =U44/$E$33 -> 0 | W44: =U44 -> 0 | AA44: =((SUM($U$45:$U$52)*0.5*(($S$46/365)*$V$41*0.01))) -> 829.5199951 | AB44: Feed
A45: Cost of Nutrition, Health and Other Costs | C45: Units/Hd | D45: $/Unit | Q45: Cost of Nutrition, Health and Other Costs | S45: Units/Hd | T45: $/Unit
A46: Cost Based on Days Fed and/or Grazed | B46: Days | C46: =Description!L27 -> 319.4225 | D46: 1.3 | E46: =C46*D46*$E$9 -> 41524.925 | F46: 488.2413286 | G46: =E46 -> 41524.925 | K46: =($E$16*$E$9)*(($C$46/365)*$F$41*0.01) -> 3109.477398 | L46: Cattle | Q46: =A46 -> Cost Based on Days Fed and/or Grazed | R46: =B46 -> Days | S46: =C46 -> 319.4225 | T46: =J57 -> 1.186994498 | U46: =S46*T46*$U$9 -> 37915.275 | V46: =U46/$E$33 -> 445.7998236 | W46: =U46 -> 37915.275 | AA46: =($U$16*$U$9)*(($S$46/365)*$V$41*0.01) -> 0 | AB46: Cattle
A47: Processing and Health | B47: $/Hd | C47: 1 | D47: 16 | E47: =(C47*D47*$E$9) -> 1600 | F47: 18.81246326 | G47: 1600 | Q47: =A47 -> Processing and Health | R47: $/Hd | U47: =(S47*T47*$E$9) -> 0 | V47: 0 | W47: 0
A48: Breeding | B48: $/Hd | C48: 1 | D48: 30 | E48: 3000 | F48: 35.27336861 | G48: =E48 -> 3000 | Q48: Breeding | R48: $/Hd | U48: 0 | V48: 0 | W48: 0
A49: Pregnancy. Test | B49: $/Hd | C49: 1 | D49: 2.5 | E49: 250 | F49: 2.939447384 | G49: =E49 -> 250 | Q49: Pregnancy. Test | R49: $/Hd | U49: 0 | V49: 0 | W49: 0
A50: Other | B50: $/Hd | C50: 1 | D50: 0 | E50: 0 | F50: 0 | G50: =E50 -> 0 | Q50: Other | R50: $/Hd | U50: 0 | V50: 0 | W50: 0
A51: General and Administrative | B51: $/Hd | C51: 1 | D51: 5 | E51: 500 | F51: 5.878894768 | G51: 500 | K51: =(K44+K46) -> 3829.606126 | L51: Total | Q51: General and Administrative | R51: $/Hd | U51: 0 | V51: 0 | W51: 0 | AA51: =(AA44+AA46) -> 829.5199951 | AB51: Total
A52: Cost Adjustment for Value of Culled Heifers | B52: $/Hd | C52: 1 | D52: =(E28/E9)*-1 -> -139.5965 | E52: -13959.65 | F52: -164.1346267 | G52: =E52 -> -13959.65 | Q52: Cost Adjustment for Value of Culled Heifers | R52: $/Hd | U52: 0 | V52: 0 | W52: 0
A53: Management Cost or Return | B53: $/Hd | C53: 1 | D53: 25 | E53: =(D53*$E$9) -> 2500 | F53: 29.39447384 | G53: 2500 | Q53: Management Cost or Return | R53: $/Hd | S53: =C53 -> 1 | T53: =D53 -> 25 | U53: 0 | V53: 0 | W53: 0
A54: Target Net Financial Margin Per Head Objective | B54: $/Hd | C54: 1 | D54: 25 | E54: =(C54*D54*$E$9) -> 2500 | F54: 29.39447384 | G54: 2500 | K54: Financial Performance | Q54: Target Net Margin Per Head Objective | R54: $/Hd. | S54: =C54 -> 1 | T54: =D54 -> 25 | U54: 0 | V54: 0 | W54: 0 | AA54: Financial Performance
A55: Total Specified Costs | E55: =SUM(E43:E54) -> 108978.475 | G55: =SUM(G42:G54) -> 112808.0811 | J55: Non - Cattle - Head In | Q55: Total Specified Added Costs (Marginal Cost) | U55: =SUM(U43:U54) -> 37915.275 | W55: =SUM(W42:W54) -> 38744.795 | Y55: Total Cost
J56: $/Day - Head In | Y56: Per Day
A57: Total Production Adjusted Cost Per Head including Target Margin | D57: $/Hd | F57: =((E55)/$E$33) -> 1281.345973 | G57: =((G55)/$E$33) -> 1326.373676 | J57: =(E43+SUM(E46:E54))/(C46*E9) -> 1.186994498 | Q57: Production Cost Per Head | R57: $/Hd. | V57: =(U55/$U$33) -> 445.7998236 | W57: =(W55/$E$33) -> 455.5531452 | Y57: =SUM($U$43:$U$54)/($S$46*$U$9) -> 1.186994498
K58: =IF($E$23=0,0,((($E$55-$E$43)*0.5+$E$18)*($C$46/365))) -> 109874.7218 | L58: Total Assets | AA58: =IF($U$23=0,0,((($U$55-$U$43)*0.5+$U$18)*($S$46/365))) -> 16590.3999 | AB58: Total Assets
A59: Non-Cattle Cost Per Day Including Target Return | B59: $/Hd/Day | C59: =J57 -> 1.186994498 | J59: =(E43+SUM(E46:E54))/E33 -> 445.7998236 | K59: =(E61+E54+E43) -> 8253.975 | L59: Return to Assets = Net + Target Margin + Cash Interest | Y59: =SUM($W$42:$W$54)/($S$46*$U$9) -> 1.212963864 | AA59: =(U61+U54+U43) -> 76817.175 | AB59: Return to Assets = Net + Target Margin + Cash Interest
E60: Financial | G60: Economic | K60: =(K59/K58)*100 -> 7.512169189 | L60: Return on Assets % | U60: Financial | W60: Economic | AA60: =(AA59/AA58)*100 -> 463.0218407 | AB60: Return on Assets %
A61: Net Income Over Target Return | E61: =(E36-E55)-E28 -> 5753.975 | G61: =(E36-G55)-E28 -> 1924.368874 | Q61: Net Income | T61: $ | U61: =(U36-U55) -> 76817.175 | W61: =(U36-W55) -> 75987.655
F63: Economic | V63: Economic
F64: Target | G64: Actual | V64: Target | W64: Actual
A65: Annualized Return on Assets - ROA - (Including Net Margin Objective) % | E65: =IF($E$23=0,0,(($E$43+$E$54+$E$61)/((($E$55-$E$43)*0.5+$E$18)*($E$23/365)))*100) -> 6.28155985 | F65: =IF(E23=0,0,((($K$51+$G$54)/((($G$55-G43)*0.5+$E$18)*($E$23/365)))*100)) -> 4.744687385 | G65: =IF($E$23=0,0,(($K$51+$G$54+$G$61)/((($G$55)*0.5+$E$18)*($E$23/365)))*100) -> 6.187198743 | Q65: Annualized Return on Assets - ROA - (Including Net Margin Objective) % | U65: =IF($U$23=0,0,(($U$43+$U$54+$U$61)/((($U$55-$U$43)*0.5+$U$18)*($U$23/365)))*100) -> 387.1717118 | V65: =IF(U23=0,0,((($AA$51+$W$54)/((($W$55-W43)*0.5+$U$18)*($U$23/365)))*100)) -> 4.091409873 | W65: =IF($U$23=0,0,(($AA$51+$W$54+$W$61)/((($W$55)*0.5+$U$18)*($U$23/365)))*100) -> 378.882426
A67: - | Q67: -
A68: *Economic costs include an opportunity cost for capital invested in cattle on feed and other cost of gain adjusted for the time | Q68: *Economic costs include an opportunity cost for capital invested in cattle on feed and other cost of gain adjusted for the time
A69: on feed. Ensure costs are full costs (don't include interest to prevent double counting; do include business overhead). | Q69: on feed. Ensure costs are full costs (don't include interest to prevent double counting; do include business overhead).

Sheet Bred Heifer SensitivityAnalysis
A1: Bred Replacement Heifer Costs and Necessary Sales Price Sensitivity Analysis
A4: Cost of Gain, In-Price of Cattle and Sales Price Necessary to Reach Targeted Net Margin*
A7: ='Bred Heifer Budget'!A54 -> Target Net Financial Margin Per Head Objective | B7: $/Head | D7: ='Bred Heifer Budget'!D54 -> 25 | E7: Per Head In
J9: =('Bred Heifer Budget'!$F$41*('Bred Heifer Budget'!$E$23/365)) -> 5.232876712 | K9: Annualized Interest Rate
D10: Sales Price Necessary For Bred Repl. Heifer per Head For | J10: Economic Interest Cost | M10: Cash Cost | P10: =B23 -> 660.632 | Q10: =($P10*'Bred Heifer Budget'!$E$9)*(('Bred Heifer Budget'!$C$46/365)*'Bred Heifer Budget'!$F$41*0.01) -> 2890.694863 | R10: =($Q10*'Bred Heifer Budget'!$D$41*0.01)+$M$11 -> 0
A11: Interval of Change For Analysis Table | D11: Different In-Price, Cost and Necessary Out-Prices* | J11: =((SUM('Bred Heifer Budget'!$E$45:$E$51)*0.5*(('Bred Heifer Budget'!$C$46/365)*'Bred Heifer Budget'!$F$41*0.01))) -> 1025.541488 | K11: Feed & Other Costs | M11: =('Bred Heifer Budget'!$K$44*'Bred Heifer Budget'!$D$41*0.01) -> 0 | P11: =B24 -> 685.632 | Q11: =($P11*'Bred Heifer Budget'!$E$9*(('Bred Heifer Budget'!$C$46/365)*'Bred Heifer Budget'!$F$41*0.01)) -> 3000.08613 | R11: =($Q11*'Bred Heifer Budget'!$D$41*0.01)+$M$11 -> 0
B12: $/Head | P12: =B25 -> 710.632 | Q12: =($P12*'Bred Heifer Budget'!$E$9)*(('Bred Heifer Budget'!$C$46/365)*'Bred Heifer Budget'!$F$41*0.01) -> 3109.477398 | R12: =($Q12*'Bred Heifer Budget'!$D$41*0.01)+$M$11 -> 0
A13: Total Production Cost | B13: 50 | D13: Change and Associated Calculated Values | J13: =('Bred Heifer Budget'!$E$16*'Bred Heifer Budget'!$E$9)*(('Bred Heifer Budget'!$C$46/365)*'Bred Heifer Budget'!$F$41*0.01) -> 3109.477398 | K13: Cattle | M13: =('Bred Heifer Budget'!$K$46*'Bred Heifer Budget'!$D$41*0.01) -> 0 | P13: =B26 -> 735.632 | Q13: =($P13*'Bred Heifer Budget'!$E$9)*(('Bred Heifer Budget'!$C$46/365)*'Bred Heifer Budget'!$F$41*0.01) -> 3218.868665 | R13: =($Q13*'Bred Heifer Budget'!$D$41*0.01)+$M$11 -> 0
A14: Heifer Cost | B14: 25 | D14: - | P14: =B27 -> 760.632 | Q14: =($P14*'Bred Heifer Budget'!$E$9)*(('Bred Heifer Budget'!$C$46/365)*'Bred Heifer Budget'!$F$41*0.01) -> 3328.259932 | R14: =($Q14*'Bred Heifer Budget'!$D$41*0.01)+$M$11 -> 0
D15: Decrease | F15: Input | G15: Increase | J15: =(L19+J13) -> 4135.565842 | K15: Total Interest | M15: =(M11+M13) -> 0
A16: Non-Cattle Costs With Cash Interest | B16: $/Head | F16: ='Bred Heifer Budget'!J59 -> 445.7998236 | K16: Cost of Gain | M16: Added | N16: Net Added | O16: Total
A17: Change in Cost Per Head | B17: $/Head | D17: =B13*2*-1 -> -100 | E17: =B13*-1 -> -50 | G17: =B13*1 -> 50 | H17: =B13*2 -> 100 | K17: Change | L17: Interest | M17: Investment | N17: Interest | O17: Added
B18: $/Day | D18: =D17/'Bred Heifer Budget'!$C$46 -> -0.3130649845 | E18: =E17/'Bred Heifer Budget'!$C$46 -> -0.1565324922 | G18: =G17/'Bred Heifer Budget'!$C$46 -> 0.1565324922 | H18: =H17/'Bred Heifer Budget'!$C$46 -> 0.3130649845
A19: Calculated Non-Cattle Cost Per Head | B19: $/Head | D19: =($F$19+D17) -> 345.7998236 | E19: =($F$19+E17) -> 395.7998236 | F19: =F16 -> 445.7998236 | G19: =($F$19+G17) -> 495.7998236 | H19: =($F$19+H17) -> 545.7998236 | K19: =G17 -> 50 | L19: =((SUM('Bred Heifer Budget'!$E$45:$E$51)+M19)*0.5*(('Bred Heifer Budget'!$C$46/365)*'Bred Heifer Budget'!$F$41*0.01)) -> 1026.088445 | M19: =($B$13*0.5) -> 25 | N19: =L19-$J$11 -> 0.5469563356 | O19: =(B13+N19)*'Bred Heifer Budget'!E33 -> 4299.018636
D21: Necessary Net Sales Price per Bred Replacement Heifer Out | K21: =H17 -> 100 | L21: =((SUM('Bred Heifer Budget'!$E$45:$E$51)+M21)*0.5*(('Bred Heifer Budget'!$C$46/365)*'Bred Heifer Budget'!$F$41*0.01)) -> 1026.635401 | M21: =($H$17*0.5) -> 50 | N21: =L21-$J$11 -> 1.093912671 | O21: =(H17+N21)*'Bred Heifer Budget'!E33 -> 8598.037273
B22: Cost | D22: -
B23: =B25-2*B14 -> 660.632 | D23: =($B23*'Bred Heifer Budget'!$E$9+SUM('Bred Heifer Budget'!$E$45:$E$54)+$R10+$O$25+'Bred Heifer Budget'!$E$32*'Bred Heifer Budget'!$E$33)/(1-('Bred Heifer Budget'!$D$31*0.01))/'Bred Heifer Budget'!$E$33 -> 1122.463113 | E23: =($B23*'Bred Heifer Budget'!$E$9+SUM('Bred Heifer Budget'!$E$45:$E$54)+$R10+$O$23+'Bred Heifer Budget'!$E$32*'Bred Heifer Budget'!$E$33)/(1-('Bred Heifer Budget'!$D$31*0.01))/'Bred Heifer Budget'!$E$33 -> 1173.010069 | F23: =($B23*'Bred Heifer Budget'!$E$9+SUM('Bred Heifer Budget'!$E$45:$E$54)+$R10+'Bred Heifer Budget'!$E$32*'Bred Heifer Budget'!$E$33)/(1-('Bred Heifer Budget'!$D$31))/'Bred Heifer Budget'!$E$33 -> 1223.557025 | G23: =($B23*'Bred Heifer Budget'!E$9+SUM('Bred Heifer Budget'!$E$45:$E$54)+$R10+$O$19+'Bred Heifer Budget'!$E$32*'Bred Heifer Budget'!$E$33)/(1-('Bred Heifer Budget'!$D$31*0.01))/'Bred Heifer Budget'!$E$33 -> 1274.103982 | H23: =($B23*'Bred Heifer Budget'!$E$9+SUM('Bred Heifer Budget'!$E$45:$E$54)+$R10+$O$21+'Bred Heifer Budget'!$E$32*'Bred Heifer Budget'!$E$33)/(1-('Bred Heifer Budget'!$D$31*0.01))/'Bred Heifer Budget'!$E$33 -> 1324.650938 | K23: =E17 -> -50 | L23: =((SUM('Bred Heifer Budget'!$E$45:$E$51)+M23)*0.5*(('Bred Heifer Budget'!$C$46/365)*'Bred Heifer Budget'!$F$41*0.01)) -> 1024.994532 | M23: =($E$17*0.5) -> -25 | N23: =L23-$J$11 -> -0.5469563356 | O23: =(E17+N23)*'Bred Heifer Budget'!$E$33 -> -4299.018636
B24: =(B25-B14) -> 685.632 | D24: =($B24*'Bred Heifer Budget'!$E$9+SUM('Bred Heifer Budget'!$E$45:$E$54)+$R11+$O$25+'Bred Heifer Budget'!$E$32*'Bred Heifer Budget'!$E$33)/(1-('Bred Heifer Budget'!$D$31*0.01))/'Bred Heifer Budget'!$E$33 -> 1151.857586 | E24: =($B24*'Bred Heifer Budget'!$E$9+SUM('Bred Heifer Budget'!$E$45:$E$54)+$R11+$O$23+'Bred Heifer Budget'!$E$32*'Bred Heifer Budget'!$E$33)/(1-('Bred Heifer Budget'!$D$31*0.01))/'Bred Heifer Budget'!$E$33 -> 1202.404543 | F24: =($B24*'Bred Heifer Budget'!$E$9+SUM('Bred Heifer Budget'!$E$45:$E$54)+$R11+'Bred Heifer Budget'!$E$32*'Bred Heifer Budget'!$E$33)/(1-('Bred Heifer Budget'!$D$31))/'Bred Heifer Budget'!$E$33 -> 1252.951499 | G24: =($B24*'Bred Heifer Budget'!E$9+SUM('Bred Heifer Budget'!$E$45:$E$54)+$R11+$O$19+'Bred Heifer Budget'!$E$32*'Bred Heifer Budget'!$E$33)/(1-('Bred Heifer Budget'!$D$31*0.01))/'Bred Heifer Budget'!$E$33 -> 1303.498455 | H24: =($B24*'Bred Heifer Budget'!$E$9+SUM('Bred Heifer Budget'!$E$45:$E$54)+$R11+$O$21+'Bred Heifer Budget'!$E$32*'Bred Heifer Budget'!$E$33)/(1-('Bred Heifer Budget'!$D$31*0.01))/'Bred Heifer Budget'!$E$33 -> 1354.045412
A25: Total Heifer Calf Cost ($/Head)*---------------> | B25: =('Bred Heifer Budget'!E16) -> 710.632 | D25: =($B25*'Bred Heifer Budget'!$E$9+SUM('Bred Heifer Budget'!$E$45:$E$54)+$R12+$O$25+'Bred Heifer Budget'!$E$32*'Bred Heifer Budget'!$E$33)/(1-('Bred Heifer Budget'!$D$31*0.01))/'Bred Heifer Budget'!$E$33 -> 1181.25206 | E25: =($B25*'Bred Heifer Budget'!$E$9+SUM('Bred Heifer Budget'!$E$45:$E$54)+$R12+$O$23+'Bred Heifer Budget'!$E$32*'Bred Heifer Budget'!$E$33)/(1-('Bred Heifer Budget'!$D$31*0.01))/'Bred Heifer Budget'!$E$33 -> 1231.799017 | F25: =($B25*'Bred Heifer Budget'!$E$9+SUM('Bred Heifer Budget'!$E$45:$E$54)+$R12+'Bred Heifer Budget'!$E$32*'Bred Heifer Budget'!$E$33)/(1-('Bred Heifer Budget'!$D$31))/'Bred Heifer Budget'!$E$33 -> 1282.345973 | G25: =($B25*'Bred Heifer Budget'!E$9+SUM('Bred Heifer Budget'!$E$45:$E$54)+$R12+$O$19+'Bred Heifer Budget'!$E$32*'Bred Heifer Budget'!$E$33)/(1-('Bred Heifer Budget'!$D$31*0.01))/'Bred Heifer Budget'!$E$33 -> 1332.892929 | H25: =($B25*'Bred Heifer Budget'!$E$9+SUM('Bred Heifer Budget'!$E$45:$E$54)+$R12+$O$21+'Bred Heifer Budget'!$E$32*'Bred Heifer Budget'!$E$33)/(1-('Bred Heifer Budget'!$D$31*0.01))/'Bred Heifer Budget'!$E$33 -> 1383.439886 | K25: =D17 -> -100 | L25: =((SUM('Bred Heifer Budget'!$E$45:$E$51)+M25)*0.5*(('Bred Heifer Budget'!$C$46/365)*'Bred Heifer Budget'!$F$41*0.01)) -> 1024.447576 | M25: =($D$17*0.5) -> -50 | N25: =L25-$J$11 -> -1.093912671 | O25: =(D17+N25)*'Bred Heifer Budget'!E33 -> -8598.037273
B26: =B25+B14 -> 735.632 | D26: =($B26*'Bred Heifer Budget'!$E$9+SUM('Bred Heifer Budget'!$E$45:$E$54)+$R13+$O$25+'Bred Heifer Budget'!$E$32*'Bred Heifer Budget'!$E$33)/(1-('Bred Heifer Budget'!$D$31*0.01))/'Bred Heifer Budget'!$E$33 -> 1210.646534 | E26: =($B26*'Bred Heifer Budget'!$E$9+SUM('Bred Heifer Budget'!$E$45:$E$54)+$R13+$O$23+'Bred Heifer Budget'!$E$32*'Bred Heifer Budget'!$E$33)/(1-('Bred Heifer Budget'!$D$31*0.01))/'Bred Heifer Budget'!$E$33 -> 1261.19349 | F26: =($B26*'Bred Heifer Budget'!$E$9+SUM('Bred Heifer Budget'!$E$45:$E$54)+$R13+'Bred Heifer Budget'!$E$32*'Bred Heifer Budget'!$E$33)/(1-('Bred Heifer Budget'!$D$31))/'Bred Heifer Budget'!$E$33 -> 1311.740447 | G26: =($B26*'Bred Heifer Budget'!E$9+SUM('Bred Heifer Budget'!$E$45:$E$54)+$R13+$O$19+'Bred Heifer Budget'!$E$32*'Bred Heifer Budget'!$E$33)/(1-('Bred Heifer Budget'!$D$31*0.01))/'Bred Heifer Budget'!$E$33 -> 1362.287403 | H26: =($B26*'Bred Heifer Budget'!$E$9+SUM('Bred Heifer Budget'!$E$45:$E$54)+$R13+$O$21+'Bred Heifer Budget'!$E$32*'Bred Heifer Budget'!$E$33)/(1-('Bred Heifer Budget'!$D$31*0.01))/'Bred Heifer Budget'!$E$33 -> 1412.834359
B27: =B25+2*B14 -> 760.632 | D27: =($B27*'Bred Heifer Budget'!$E$9+SUM('Bred Heifer Budget'!$E$45:$E$54)+$R14+$O$25+'Bred Heifer Budget'!$E$32*'Bred Heifer Budget'!$E$33)/(1-('Bred Heifer Budget'!$D$31*0.01))/'Bred Heifer Budget'!$E$33 -> 1240.041008 | E27: =($B27*'Bred Heifer Budget'!$E$9+SUM('Bred Heifer Budget'!$E$45:$E$54)+$R14+$O$23+'Bred Heifer Budget'!$E$32*'Bred Heifer Budget'!$E$33)/(1-('Bred Heifer Budget'!$D$31*0.01))/'Bred Heifer Budget'!$E$33 -> 1290.587964 | F27: =($B27*'Bred Heifer Budget'!$E$9+SUM('Bred Heifer Budget'!$E$45:$E$54)+$R14+'Bred Heifer Budget'!$E$32*'Bred Heifer Budget'!$E$33)/(1-('Bred Heifer Budget'!$D$31))/'Bred Heifer Budget'!$E$33 -> 1341.134921 | G27: =($B27*'Bred Heifer Budget'!E$9+SUM('Bred Heifer Budget'!$E$45:$E$54)+$R14+$O$19+'Bred Heifer Budget'!$E$32*'Bred Heifer Budget'!$E$33)/(1-('Bred Heifer Budget'!$D$31*0.01))/'Bred Heifer Budget'!$E$33 -> 1391.681877 | H27: =($B27*'Bred Heifer Budget'!$E$9+SUM('Bred Heifer Budget'!$E$45:$E$54)+$R14+$O$21+'Bred Heifer Budget'!$E$32*'Bred Heifer Budget'!$E$33)/(1-('Bred Heifer Budget'!$D$31*0.01))/'Bred Heifer Budget'!$E$33 -> 1442.228833
A29: -
A30: *Price necessary to achieve targeted net margin objective. Includes marketing costs in addition to production costs.

Sheet PairBudget
A1: Replacement Heifer Pair Production Budget | Q1: This Section IS Not to Be Changed - a Zero Purchase Price Is for Analysis
A4: Decision Description | B4: First calf heifer sold as a pair bred back for second calf | Q4: Decision Description | R4: Custom Fed Heifers
R5: Date of Analysis | U5: =TODAY() -> 2013-03-01
A6: Weaned Heifer Calf | D6: Heifer Raised | Q6: Purchase Heifer Calf to Grow
A7: At Best Sell or Buy Option - Describe | D7: Direct Sale | Q7: At Best Buy Option - Describe
A8: Date Started | E8: =Description!G7 -> 2012-10-15 | Q8: Date Purchased | U8: ='Bred Heifer Budget'!E8 -> 2012-10-15
A9: No. of Cattle Retained or Purchased | B9: Head | E9: =Description!G8 -> 100 | Q9: No. of Cattle Purchased | R9: Head | U9: ='Bred Heifer Budget'!E9 -> 100
A10: Beginning Weight | B10: Lbs/Head | E10: =Description!G9 -> 560 | Q10: Beginning Weight | U10: ='Bred Heifer Budget'!E10 -> 560
A11: Heifer Cost or Sales Value | B11: $/Cwt | E11: =Description!G10 -> 132
A12: Heifer Cost | B12: $/Head | E12: =E10*E11*0.01 -> 739.2 | Q12: Gross Heifer Cost | R12: $/Head | U12: 0
A13: Other Costs if Sold - Commissions | B13: % - $/Head | D13: =Description!G11 -> 4 | E13: =((E12*0.01)*D13) -> 29.568 | Q13: Other Purchase or Costs - Commissions | R13: % - $/Head | T13: ='Bred Heifer Budget'!D13 -> 4 | U13: ='Bred Heifer Budget'!E13 -> 29.568
A14: Purchase Costs - Per Head Charges | B14: $/Head | E14: =Description!G12 -> 1 | Q14: Purchase Costs - Per Head Charges | R14: $/Head | U14: 0
A16: Net Purchase Cost Per Head | B16: $/Head | E16: =(E12-E13+E14) -> 710.632 | Q16: Net Purchase Cost Per Head | R16: $/Head | U16: 0
A18: Total Cost | B18: $ | E18: =(E16*E9) -> 71063.2 | Q18: Total Cost | R18: $ | U18: 0
A19: - | Q19: -
A20: Description of Alternative | D20: Direct Sale - 3 in one | Q20: Description of Alternative | T20: Direct Sale
A22: Date Pair Marketed | E22: =Description!G48 -> 2014-06-01 | F22: Months | G22: =(E22-E8)/30.47 -> 19.49458484 | Q22: Date Marketed | U22: =U8+U23 -> 2014-06-01 | V22: Months
A23: Days Held - Not Adjusted for Culling | E23: =E22-E8 -> 594 | Q23: Days Held | U23: =E23 -> 594 | V23: =U23/30.47 -> 19.49458484
A24: Average Daily Gain | B24: Lbs/Day | E24: 0.85 | Q24: Average Daily Gain | R24: Lb./Day | U24: =E24 -> 0.85
A25: Weight at Sales | B25: Lbs/Head | E25: =(E23*E24+E10) -> 1064.9 | Q25: Weight at Sales | R25: Lb./Head | U25: =(U23*U24+U10) -> 1064.9
A26: Net Gain | B26: Lbs/Head | E26: =(E25-E10) -> 504.9 | Q26: Net Gain | R26: Lb./Head | U26: =(U25-U10) -> 504.9
A27: Culled Heifers | B27: Head | E27: =Description!G16+Description!G29+Description!G39 -> 22.955 | Q27: Culled Heifers | R27: Head
A28: Value of Culls | B28: $ | E28: =Description!G19+Description!G32+Description!G43 -> 23995.55 | Q28: Value of Culls | R28: $
A29: Death Loss | B29: Head | E29: =Description!F56 -> 1.3505 | Q29: Death Loss | R29: Head
A30: Gross Sales Income | B30: $/Head | E30: 1925 | Q30: Gross Sales Income | R30: $/Head | U30: =E30 -> 1925
A31: Marketing Costs - Commissions | B31: % - $/Head | D31: 0 | E31: =((E30*D31*0.01)) -> 0 | Q31: Marketing Costs - Commissions | R31: % - $/Head | T31: =D31 -> 0 | U31: =((U30*T31*0.01)) -> 0
A32: Marketing Costs Total Charges | B32: $/Head | E32: 1 | Q32: Marketing Costs Total Charges | R32: $/Head | U32: =E32 -> 1
A33: Number Marketed (Net of Death Loss) | B33: Head | E33: =Description!G47 -> 75.89398478 | Q33: Number Marketed (Net of Death Loss) | R33: Head | U33: =E33 -> 75.89398478
A34: Net Sales Revenue Per Head | B34: $/Head | E34: =((E30-E32-E31)) -> 1924 | Q34: Net Sales Revenue Per Head | R34: $/Head | U34: =((U30-U32-U31)) -> 1924
A36: Total Sales Value (Based on Head Marketed) | B36: $ | E36: =(E34*E33)+E28 -> 170015.5767 | Q36: Total Sales Value (Based on Head Marketed) | R36: $ | U36: =(U34*U33) -> 146020.0267
E38: Financial | F38: Financial | G38: Economic* | U38: Financial | V38: Financial | W38: Economic*
A39: Total Difference in Gross Revenue (Marginal Revenue) | E39: Total | F39: $/Head | G39: Total | Q39: Total Difference in Gross Revenue (Marginal Revenue) | U39: Total | V39: $/Head | W39: Total
A40: Total Projected Expenses | F40: Rate of Interest | K40: Annualized | Q40: Total Projected Expenses | V40: Rate of Interest | AA40: Annualized
A41: Borrowed or Opportunity Cost of Equity Capital | B41: % Borrowed | D41: 0 | E41: % Rate | F41: 0 | G41: % | K41: Interest Rate | Q41: Borrowed or Opportunity Cost of Equity Capital | R41: % Borrowed | T41: =D41 -> 0 | U41: % Rate | V41: =F41 -> 0 | W41: % | AA41: Interest Rate
A42: Opportunity Cost of Equity Capital If Invested | B42: $ | E42: Total | F42: $/Hd Out | G42: =K51 -> 0 | K42: =($F$41*($C$46/365)) -> 0 | L42: % | Q42: Opportunity Cost of Equity Capital If Invested | R42: $ | U42: Total | V42: $/Head | W42: =AA51 -> 0 | AA42: =($F$41*($S$46/365)) -> 0 | AB42: %
A43: Cash Interest Cost | B43: $/Hd | D43: =(E43/E9) -> 0 | E43: =(D41*G42*0.01) -> 0 | F43: =E43/$E$33 -> 0 | K43: Economic Interest Cost | Q43: Cash Interest Cost | R43: $/Hd. | T43: =(U43/U9) -> 0 | U43: =(T41*W42*0.01) -> 0 | V43: =U43/$E$33 -> 0 | AA43: Economic Interest Cost
A44: Total Purchase Cost of Cattle | B44: $ | E44: =E18 -> 71063.2 | F44: =E44/$E$33 -> 936.3482522 | G44: =E44 -> 71063.2 | K44: =((SUM($E$45:$E$52)*0.5*(($C$46/365)*$F$41*0.01))) -> 0 | L44: Feed | Q44: Total Purchase Cost of Cattle | R44: $ | U44: 0 | V44: =U44/$E$33 -> 0 | W44: =U44 -> 0 | AA44: =((SUM($U$45:$U$52)*0.5*(($S$46/365)*$V$41*0.01))) -> 0 | AB44: Feed
A45: Cost of Nutrition, Health and Other Costs | C45: Units/Hd | D45: $/Unit | Q45: Cost of Nutrition, Health and Other Costs | S45: Units/Hd | T45: $/Unit
A46: Cost Based on Days Fed and/or Grazed | B46: Days | C46: =Description!L36 -> 560.2841 | D46: 1.3 | E46: =C46*D46*$E$9 -> 72836.933 | F46: 959.7194457 | G46: =E46 -> 72836.933 | K46: =($E$16*$E$9)*(($C$46/365)*$F$41*0.01) -> 0 | L46: Cattle | Q46: =A46 -> Cost Based on Days Fed and/or Grazed | R46: =B46 -> Days | S46: =C46 -> 560.2841 | T46: =J57 -> 1.24653516 | U46: =S46*T46*$U$9 -> 69841.383 | V46: =U46/$E$33 -> 920.2492557 | W46: =U46 -> 69841.383 | AA46: =($U$16*$U$9)*(($S$46/365)*$V$41*0.01) -> 0 | AB46: Cattle
A47: Processing and Health | B47: $/Hd | C47: 1 | D47: 24 | E47: =(C47*D47*$E$9) -> 2400 | F47: 31.62305955 | G47: 2400 | Q47: =A47 -> Processing and Health | R47: $/Hd | U47: =(S47*T47*$E$9) -> 0 | V47: 0 | W47: 0
A48: Breeding - two when bred back | B48: $/Hd | C48: 1 | D48: 60 | E48: 6000 | F48: 79.05764887 | G48: =E48 -> 6000 | Q48: Breeding - two when bred back | R48: $/Hd | U48: 0 | V48: 0 | W48: 0
A49: Calving | B49: $/Hd | C49: 1 | D49: 40 | E49: 4000 | F49: 52.70509925 | G49: =E49 -> 4000 | Q49: Calving | R49: $/Hd | U49: 0 | V49: 0 | W49: 0
A50: Pregnancy Check - two when bred back | B50: $/Hd | C50: 1 | D50: 6 | E50: 600 | F50: 7.905764887 | G50: =E50 -> 600 | Q50: Pregnancy Check - two when bred back | R50: $/Hd | U50: 0 | V50: 0 | W50: 0
A51: General and Administrative | B51: $/Hd | C51: 1 | D51: 5 | E51: 500 | F51: 6.588137406 | G51: 500 | K51: =(K44+K46) -> 0 | L51: Total | Q51: General and Administrative | R51: $/Hd | U51: 0 | V51: 0 | W51: 0 | AA51: =(AA44+AA46) -> 0 | AB51: Total
A52: Cost Adjustment for Value of Culled Pairs | B52: $/Hd | C52: 1 | D52: =(E28/E9)*-1 -> -239.9555 | E52: -23995.55 | F52: -316.1719611 | G52: =E52 -> -23995.55 | Q52: Cost Adjustment for Value of Culled Pairs | R52: $/Hd | U52: 0 | V52: 0 | W52: 0
A53: Management Cost or Return | B53: $/Hd | C53: 1 | D53: 50 | E53: =(D53*$E$9) -> 5000 | F53: 65.88137406 | G53: 5000 | Q53: Management Cost or Return | R53: $/Hd | S53: =C53 -> 1 | T53: =D53 -> 50 | U53: 0 | V53: 0 | W53: 0
A54: Target Net Financial Margin Per Head Objective | B54: $/Hd | C54: 1 | D54: 25 | E54: =(C54*D54*$E$9) -> 2500 | F54: 32.94068703 | G54: 2500 | K54: Financial Performance | Q54: Target Net Margin Per Head Objective | R54: $/Hd. | S54: =C54 -> 1 | T54: =D54 -> 25 | U54: 0 | V54: 0 | W54: 0 | AA54: Financial Performance
A55: Total Specified Costs | E55: =SUM(E43:E54) -> 140904.583 | G55: =SUM(G42:G54) -> 140904.583 | J55: Non - Cattle | Q55: Total Specified Added Costs (Marginal Cost) | U55: =SUM(U43:U54) -> 69841.383 | W55: =SUM(W42:W54) -> 69841.383 | Y55: Total Cost
J56: $/Day | Y56: Per Day
A57: Total Production Adjusted Cost Per Head including Target Margin | D57: $/Hd | F57: =(E55/$E$33) -> 1856.597508 | G57: =(G55/$E$33) -> 1856.597508 | J57: =(E43+SUM(E46:E54))/(C46*E9) -> 1.24653516 | Q57: Production Cost Per Head | R57: $/Hd. | V57: =(U55/$U$33) -> 920.2492557 | W57: =(W55/$E$33) -> 920.2492557 | Y57: =SUM($U$43:$U$54)/($S$46*$U$9) -> 1.24653516
K58: =IF($E$23=0,0,((($E$55-$E$43)*0.5+$E$18)*($E$23/365))) -> 230301.9232 | L58: Total Assets | AA58: =IF($U$23=0,0,((($U$55-$U$43)*0.5+$U$18)*($U$23/365))) -> 56829.83767 | AB58: Total Assets
A59: Non-Cattle Cost Per Day Including Target Return | B59: $/Hd/Day | C59: =J57 -> 1.24653516 | J59: =(E43+SUM(E46:E54))/E33 -> 920.2492557 | K59: =(E61+E54+E43) -> 7615.443707 | L59: Return to Assets = Net + Target Margin + Cash Interest | Y59: =SUM($W$42:$W$54)/($S$46*$U$9) -> 1.24653516 | AA59: =(U61+U54+U43) -> 76178.64371 | AB59: Return to Assets = Net + Target Margin + Cash Interest
E60: Financial | G60: Economic | K60: =(K59/K58)*100 -> 3.306721717 | L60: Return on Assets % | U60: Financial | W60: Economic | AA60: =(AA59/AA58)*100 -> 134.0469141 | AB60: Return on Assets %
A61: Net Income | E61: =(E36-E55)-E28 -> 5115.443707 | G61: =(E36-G55)-E28 -> 5115.443707 | Q61: Net Income | T61: $ | U61: =(U36-U55) -> 76178.64371 | W61: =(U36-W55) -> 76178.64371
F63: Economic | V63: Economic
F64: Target | G64: Actual | V64: Target | W64: Actual
A65: Annualized Return on Assets - ROA - (Including Net Margin Objective) % | E65: =IF($E$23=0,0,(($E$43+$E$54+$E$61)/((($E$55-$E$43)*0.5+$E$18)*($E$23/365)))*100) -> 3.306721717 | F65: =IF(E23=0,0,((($K$51+$G$54)/((($G$55-G43)*0.5+$E$18)*($E$23/365)))*100)) -> 1.085531534 | G65: =IF($E$23=0,0,(($K$51+$G$54+$G$61)/((($G$55)*0.5+$E$18)*($E$23/365)))*100) -> 3.306721717 | Q65: Annualized Return on Assets - ROA - (Including Net Margin Objective) % | U65: =IF($U$23=0,0,(($U$43+$U$54+$U$61)/((($U$55-$U$43)*0.5+$U$18)*($U$23/365)))*100) -> 134.0469141 | V65: =IF(U23=0,0,((($AA$51+$W$54)/((($W$55-W43)*0.5+$U$18)*($U$23/365)))*100)) -> 0 | W65: =IF($U$23=0,0,(($AA$51+$W$54+$W$61)/((($W$55)*0.5+$U$18)*($U$23/365)))*100) -> 134.0469141
A67: - | Q67: -
A68: *Economic costs include an opportunity cost for capital invested in cattle on feed and other cost of gain adjusted for the time | Q68: *Economic costs include an opportunity cost for capital invested in cattle on feed and other cost of gain adjusted for the time
A69: on feed. Ensure costs are full costs (don't include interest to prevent double counting; do include business overhead). | Q69: on feed. Ensure costs are full costs (don't include interest to prevent double counting; do include business overhead).

Sheet Pair Sensitivity Analysis
A1: Replacement Pair Costs and Necessary Sales Price Sensitivity Analysis
A4: Cost of Gain, In-Price of Cattle and Sales Price Necessary to Reach Targeted Net Margin*
A7: ='Bred Heifer Budget'!A54 -> Target Net Financial Margin Per Head Objective | B7: $/Head | D7: =PairBudget!D54 -> 25 | E7: Per Head In
J8: ='Bred Heifer Budget'!D41 -> 0 | K8: % Borrowed | P8: Cattle | R8: Total Cash
J9: =('Bred Heifer Budget'!$F$41*('Bred Heifer Budget'!$C$46/365)) -> 4.375650685 | K9: Annualized Interest Rate
D10: Sales Price Necessary Pair per Head For | J10: Economic Interest Cost | M10: Cash Cost | P10: =B23 -> 660.632 | Q10: =($P10*PairBudget!$E$9)*((PairBudget!$C$46/365)*PairBudget!$F$41*0.01) -> 0 | R10: =($Q10*PairBudget!$D$41*0.01)+$M$11 -> 0
A11: Interval of Change For Analysis Table | D11: Different In-Price, Cost and Necessary Out-Prices* | J11: =((SUM(PairBudget!$E$45:$E$51)*0.5*((PairBudget!$C$46/365)*PairBudget!$F$41*0.01))) -> 0 | K11: Feed & Other Costs | M11: =(PairBudget!$K$44*PairBudget!$D$41*0.01) -> 0 | P11: =B24 -> 685.632 | Q11: =($P11*PairBudget!$E$9*((PairBudget!$E$23/365)*PairBudget!$F$41*0.01)) -> 0 | R11: =($Q11*PairBudget!$D$41*0.01)+$M$11 -> 0
B12: $/Head | P12: =B25 -> 710.632 | Q12: =($P12*PairBudget!$E$9)*((PairBudget!$C$46/365)*PairBudget!$F$41*0.01) -> 0 | R12: =($Q12*PairBudget!$D$41*0.01)+$M$11 -> 0
A13: Total Production Cost | B13: 50 | D13: Change and Associated Calculated Values | J13: =(PairBudget!$E$16*PairBudget!$E$9)*((PairBudget!$C$46/365)*PairBudget!$F$41*0.01) -> 0 | K13: Cattle | M13: =(PairBudget!$K$46*PairBudget!$D$41*0.01) -> 0 | P13: =B26 -> 735.632 | Q13: =($P13*PairBudget!$E$9)*((PairBudget!$E$23/365)*PairBudget!$F$41*0.01) -> 0 | R13: =($Q13*PairBudget!$D$41*0.01)+$M$11 -> 0
A14: Heifer Cost | B14: 25 | D14: - | P14: =B27 -> 760.632 | Q14: =($P14*PairBudget!$E$9)*((PairBudget!$C$46/365)*PairBudget!$F$41*0.01) -> 0 | R14: =($Q14*PairBudget!$D$41*0.01)+$M$11 -> 0
D15: Decrease | F15: Input | G15: Increase | J15: =(L19+J13) -> 0 | K15: Total Interest | M15: =(M11+M13) -> 0
A16: Non-Cattle Costs With Cash Interest | B16: $/Head | F16: =PairBudget!J59 -> 920.2492557 | K16: Cost of Gain | M16: Added | N16: Net Added | O16: Total
A17: Change in Cost Per Head | B17: $/Head | D17: =B13*2*-1 -> -100 | E17: =B13*-1 -> -50 | G17: =B13*1 -> 50 | H17: =B13*2 -> 100 | K17: Change | L17: Interest | M17: Investment | N17: Interest | O17: Added
B18: $/Day | D18: =D17/PairBudget!$C$46 -> -0.1784808814 | E18: =E17/PairBudget!$C$46 -> -0.0892404407 | G18: =G17/PairBudget!$E$23 -> 0.08417508418 | H18: =H17/PairBudget!$C$46 -> 0.1784808814
A19: Calculated Non-Cattle Cost Per Head | B19: $/Head | D19: =($F$19+D17) -> 820.2492557 | E19: =($F$19+E17) -> 870.2492557 | F19: =F16 -> 920.2492557 | G19: =($F$19+G17) -> 970.2492557 | H19: =($F$19+H17) -> 1020.249256 | K19: =G17 -> 50 | L19: =((SUM(PairBudget!$E$45:$E$51)+M19)*0.5*((PairBudget!$C$46/365)*PairBudget!$F$41*0.01)) -> 0 | M19: =($B$13*0.5) -> 25 | N19: =L19-$J$11 -> 0 | O19: =(B13+N19)*PairBudget!E33 -> 3794.699239
D21: Necessary Net Sales Price per Pair Heifer Out | K21: =H17 -> 100 | L21: =((SUM(PairBudget!$E$45:$E$51)+M21)*0.5*((PairBudget!$C$46/365)*PairBudget!$F$41*0.01)) -> 0 | M21: =($H$17*0.5) -> 50 | N21: =L21-$J$11 -> 0 | O21: =(H17+N21)*PairBudget!E33 -> 7589.398478
B22: Cost | D22: -
B23: =B25-2*B14 -> 660.632 | D23: =($B23*PairBudget!$E$9+SUM(PairBudget!$E$45:$E$54)+$R10+$O$25+PairBudget!$E$32*PairBudget!$E$33)/(1-(PairBudget!$D$31*0.01))/PairBudget!$E$33 -> 1691.716134 | E23: =($B23*PairBudget!$E$9+SUM(PairBudget!$E$45:$E$54)+$R10+$O$23+PairBudget!$E$32*PairBudget!$E$33)/(1-(PairBudget!$D$31*0.01))/PairBudget!$E$33 -> 1741.716134 | F23: =($B23*PairBudget!$E$9+SUM(PairBudget!$E$45:$E$54)+$R10+PairBudget!$E$32*PairBudget!$E$33)/(1-(PairBudget!$D$31))/PairBudget!$E$33 -> 1791.716134 | G23: =($B23*PairBudget!E$9+SUM(PairBudget!$E$45:$E$54)+$R10+$O$19+PairBudget!$E$32*PairBudget!$E$33)/(1-(PairBudget!$D$31*0.01))/PairBudget!$E$33 -> 1841.716134 | H23: =($B23*PairBudget!$E$9+SUM(PairBudget!$E$45:$E$54)+$R10+$O$21+PairBudget!$E$32*PairBudget!$E$33)/(1-(PairBudget!$D$31*0.01))/PairBudget!$E$33 -> 1891.716134 | K23: =E17 -> -50 | L23: =((SUM(PairBudget!$E$45:$E$51)+M23)*0.5*((PairBudget!$C$46/365)*PairBudget!$F$41*0.01)) -> 0 | M23: =($E$17*0.5) -> -25 | N23: =L23-$J$11 -> 0 | O23: =(E17+N23)*PairBudget!$E$33 -> -3794.699239
B24: =(B25-B14) -> 685.632 | D24: =($B24*PairBudget!$E$9+SUM(PairBudget!$E$45:$E$54)+$R11+$O$25+PairBudget!$E$32*PairBudget!$E$33)/(1-(PairBudget!$D$31*0.01))/PairBudget!$E$33 -> 1724.656821 | E24: =($B24*PairBudget!$E$9+SUM(PairBudget!$E$45:$E$54)+$R11+$O$23+PairBudget!$E$32*PairBudget!$E$33)/(1-(PairBudget!$D$31*0.01))/PairBudget!$E$33 -> 1774.656821 | F24: =($B24*PairBudget!$E$9+SUM(PairBudget!$E$45:$E$54)+$R11+PairBudget!$E$32*PairBudget!$E$33)/(1-(PairBudget!$D$31))/PairBudget!$E$33 -> 1824.656821 | G24: =($B24*PairBudget!E$9+SUM(PairBudget!$E$45:$E$54)+$R11+$O$19+PairBudget!$E$32*PairBudget!$E$33)/(1-(PairBudget!$D$31*0.01))/PairBudget!$E$33 -> 1874.656821 | H24: =($B24*PairBudget!$E$9+SUM(PairBudget!$E$45:$E$54)+$R11+$O$21+PairBudget!$E$32*PairBudget!$E$33)/(1-(PairBudget!$D$31*0.01))/PairBudget!$E$33 -> 1924.656821
A25: Total Heifer Calf Cost ($/Head)*---------------> | B25: =(PairBudget!E16) -> 710.632 | D25: =($B25*PairBudget!$E$9+SUM(PairBudget!$E$45:$E$54)+$R12+$O$25+PairBudget!$E$32*PairBudget!$E$33)/(1-(PairBudget!$D$31*0.01))/PairBudget!$E$33 -> 1757.597508 | E25: =($B25*PairBudget!$E$9+SUM(PairBudget!$E$45:$E$54)+$R12+$O$23+PairBudget!$E$32*PairBudget!$E$33)/(1-(PairBudget!$D$31*0.01))/PairBudget!$E$33 -> 1807.597508 | F25: =($B25*PairBudget!$E$9+SUM(PairBudget!$E$45:$E$54)+$R12+PairBudget!$E$32*PairBudget!$E$33)/(1-(PairBudget!$D$31))/PairBudget!$E$33 -> 1857.597508 | G25: =($B25*PairBudget!E$9+SUM(PairBudget!$E$45:$E$54)+$R12+$O$19+PairBudget!$E$32*PairBudget!$E$33)/(1-(PairBudget!$D$31*0.01))/PairBudget!$E$33 -> 1907.597508 | H25: =($B25*PairBudget!$E$9+SUM(PairBudget!$E$45:$E$54)+$R12+$O$21+PairBudget!$E$32*PairBudget!$E$33)/(1-(PairBudget!$D$31*0.01))/PairBudget!$E$33 -> 1957.597508 | K25: =D17 -> -100 | L25: =((SUM(PairBudget!$E$45:$E$51)+M25)*0.5*((PairBudget!$E$23/365)*PairBudget!$F$41*0.01)) -> 0 | M25: =($D$17*0.5) -> -50 | N25: =L25-$J$11 -> 0 | O25: =(D17+N25)*PairBudget!E33 -> -7589.398478
B26: =B25+B14 -> 735.632 | D26: =($B26*PairBudget!$E$9+SUM(PairBudget!$E$45:$E$54)+$R13+$O$25+PairBudget!$E$32*PairBudget!$E$33)/(1-(PairBudget!$D$31*0.01))/PairBudget!$E$33 -> 1790.538195 | E26: =($B26*PairBudget!$E$9+SUM(PairBudget!$E$45:$E$54)+$R13+$O$23+PairBudget!$E$32*PairBudget!$E$33)/(1-(PairBudget!$D$31*0.01))/PairBudget!$E$33 -> 1840.538195 | F26: =($B26*PairBudget!$E$9+SUM(PairBudget!$E$45:$E$54)+$R13+PairBudget!$E$32*PairBudget!$E$33)/(1-(PairBudget!$D$31))/PairBudget!$E$33 -> 1890.538195 | G26: =($B26*PairBudget!E$9+SUM(PairBudget!$E$45:$E$54)+$R13+$O$19+PairBudget!$E$32*PairBudget!$E$33)/(1-(PairBudget!$D$31*0.01))/PairBudget!$E$33 -> 1940.538195 | H26: =($B26*PairBudget!$E$9+SUM(PairBudget!$E$45:$E$54)+$R13+$O$21+PairBudget!$E$32*PairBudget!$E$33)/(1-(PairBudget!$D$31*0.01))/PairBudget!$E$33 -> 1990.538195
B27: =B25+2*B14 -> 760.632 | D27: =($B27*PairBudget!$E$9+SUM(PairBudget!$E$45:$E$54)+$R14+$O$25+PairBudget!$E$32*PairBudget!$E$33)/(1-(PairBudget!$D$31*0.01))/PairBudget!$E$33 -> 1823.478882 | E27: =($B27*PairBudget!$E$9+SUM(PairBudget!$E$45:$E$54)+$R14+$O$23+PairBudget!$E$32*PairBudget!$E$33)/(1-(PairBudget!$D$31*0.01))/PairBudget!$E$33 -> 1873.478882 | F27: =($B27*PairBudget!$E$9+SUM(PairBudget!$E$45:$E$54)+$R14+PairBudget!$E$32*PairBudget!$E$33)/(1-(PairBudget!$D$31))/PairBudget!$E$33 -> 1923.478882 | G27: =($B27*PairBudget!E$9+SUM(PairBudget!$E$45:$E$54)+$R14+$O$19+PairBudget!$E$32*PairBudget!$E$33)/(1-(PairBudget!$D$31*0.01))/PairBudget!$E$33 -> 1973.478882 | H27: =($B27*PairBudget!$E$9+SUM(PairBudget!$E$45:$E$54)+$R14+$O$21+PairBudget!$E$32*PairBudget!$E$33)/(1-(PairBudget!$D$31*0.01))/PairBudget!$E$33 -> 2023.478882
A29: -
A30: *Price necessary to achieve targeted net margin objective. Includes marketing costs in addition to production costs.

Sheet Summary
A1: Replacement Heifer and First-Calf Pair Production and Pricing Summary
A3: Ranch: | B3: =Description!C3 -> Example of bred and 3 in one pair cost | F3: Date Printed:
F4: =NOW() -> 2013-03-01T08:09:59.590
A6: Replacement Heifers - Bred or First-Calf Pairs Description
A7: Date - Weaned or Purchased Heifers Started | F7: =Description!G7 -> 2012-10-15
A8: Number of Head | D8: Head | F8: =Description!G8 -> 100
A9: Beginning Weight | D9: Lbs/Head | F9: =Description!G9 -> 560
A10: =Description!B22 -> Heifers Exposed | F10: =Description!G22 -> 94.5
A11: Beginning Breeding Season Date | F11: =Description!G20 -> 2013-04-27
A12: Potential Sales of Bred Replacement Heifers | D12: Head | F12: =Description!G34 -> 85.05
A13: Sales Date for Bred Replacement Heifers | F13: =Description!G35 -> 2013-11-01
A15: First-Calf Pairs Available for Sale | D15: Head | F15: =Description!G47 -> 75.89398478
A16: Sales Date for First-Calf Pairs | F16: =Description!G48 -> 2014-06-01
A18: Performance Measures | E18: Started | F18: Exposed
A19: Replacement Heifers | D19: Head | E19: =Description!F51 -> 100 | F19: =Description!G51 -> 94.5
A20: Pregnancy Percent Based on Exposed Heifers | E20: =Description!F52 -> 0.8505 | F20: =Description!G52 -> 0.9
A21: Calving Percent | E21: =Description!F53 -> 0.7589398478 | F21: =Description!G53 -> 0.80311095
A22: Calving Percent Based on Bred Heifers | C22: =Description!E54 -> 0.8923455
A23: Death Loss of Replacements - Starting Through Pairs | D23: Head - % | E23: =Description!F56 -> 1.3505 | F23: =Description!G56 -> 0.013505
A24: Culls Marketed - Starting Through First-Calf Pairs Sales | D24: Head - % | E24: =Description!G57 -> 22.955 | F24: =E24/F8 -> 0.22955 | L24: =SUM(E24+E23+F15) -> 100.1994848 | M24: Check on numbers
A26: -------------------------------------------------------------------------------------------------------------------------------------------------------
A28: Cost and Net Income - Bred Heifer Sales | B28: Head | D28: =F12 -> 85.05
E29: Financial | F29: Economic
A30: Target Net Financial Margin Per Head Objective | B30: $/Hd | D30: ='Bred Heifer Budget'!D54 -> 25 | E30: Per Head In
A31: Rate or Return or Interest Rate | B31: % | F31: ='Bred Heifer Budget'!F41*0.01 -> 0.05
A32: Total Production Adjusted Cost Per Head* | B32: $/Hd | E32: ='Bred Heifer Budget'!F57 -> 1281.345973 | F32: ='Bred Heifer Budget'!G57 -> 1326.373676
A34: Projected Net Price | B34: $/Hd | E34: ='Bred Heifer Budget'!E34 -> 1349 | F34: =E34 -> 1349
A35: Net Income Over Target Return | E35: =E34-E32 -> 67.65402704 | F35: =F34-F32 -> 22.62632421
A37: Total Net Income Over Target Return | B37: $ | E37: ='Bred Heifer Budget'!E61 -> 5753.975
A38: Total Net to Equity Including Target Return | B38: $ | E38: =('Bred Heifer Budget'!E61+'Bred Heifer Budget'!E54) -> 8253.975
A40: Annualized Return on Assets - ROA - (Including Net Margin Objective) % | E40: ='Bred Heifer Budget'!E65*0.01 -> 0.0628155985
D42: Months
A43: Months Bred Heifers Sold are Held | D43: =((F13-F7)/(365/12)) -> 12.55890411
A45: ------------------------------------------------------------------------------------------------------------------------------------------------------
A47: Cost and Net Income - Pair Sales | B47: Head | D47: =Description!G47 -> 75.89398478
E48: Financial | F48: Economic
A49: Target Net Financial Margin Per Head Objective | B49: $/Hd | D49: =PairBudget!D54 -> 25
A50: Rate of Return or Interest Rate | B50: % | F50: =PairBudget!F41*0.01 -> 0
A51: Total Production Adjusted Cost Per Head* | B51: $/Hd | E51: =PairBudget!F57 -> 1856.597508 | F51: =PairBudget!G57 -> 1856.597508
A53: Projected Price | B53: $/Hd | E53: =PairBudget!E34 -> 1924 | F53: =E53 -> 1924
A54: Net Income Over Target Return | E54: =E53-E51 -> 67.40249207 | F54: =F53-F51 -> 67.40249207
A56: Total Net Income Over Target Return | B56: $ | E56: =PairBudget!E61 -> 5115.443707
A57: Total Net to Equity Including Target Return | B57: $ | E57: =PairBudget!E54+PairBudget!E61 -> 7615.443707
A59: Annualized Return on Assets - ROA - (Including Net Margin Objective) % | E59: =PairBudget!E65*0.01 -> 0.03306721717
D61: Months
A62: Months First Calf Pairs Sold are Held | D62: =((F16-F7)/(365/12)) -> 19.52876712
A63: -------------------------------------------------------------------------------------------------------------------------------------------------------
A64: *Price necessary to achieve targeted net margin objective. Includes marketing costs in addition to production costs.

Sheet Sheet1
